bitfinex-derivatives/quotes_ETHF0:USTF0_20250320
["timestamp","ask_amount","ask_price","bid_price","bid_amount"]
[1742462558934,1.3895,2011.9,2011.8,1.68391]
[1742462559239,3.2078,2012.0,2011.9,0.99396]
[1742462559537,1.3168,2012.2,2012.1,0.99386]
[1742462559836,7.7286,2012.3,2012.2,0.99381]
[1742462560035,4.5246,2012.3,2012.2,0.99381]
[1742462560637,4.5246,2012.3,2012.2,1.67401]
[1742462565042,3.2078,2012.3,2012.2,1.67401]
[1742462567037,3.2078,2012.3,2012.2,4.87801]
[1742462568240,5.2007,2012.3,2012.2,4.87801]
[1742462568441,5.2007,2012.3,2012.2,0.99381]
[1742462570946,1.9929,2012.3,2012.2,0.99381]
[1742462582955,0.00744472,2012.4,2012.3,0.99376]
[1742462583251,0.69904472,2012.4,2012.3,0.99376]
[1742462584246,2.05684472,2012.4,2012.3,0.99376]
[1742462586254,2.05684472,2012.4,2012.1,4.19683]
[1742462586452,1.965,2012.3,2012.1,1.4185]
[1742462586753,1.965,2012.3,2012.2,0.99381]
[1742462586754,0.643,2012.3,2012.2,0.99381]
[1742462586949,1.63676,2012.3,2012.1,1.4185]
[1742462587155,1.63676,2012.3,2012.2,0.99381]
[1742462587364,0.643,2012.3,2012.2,0.99381]
[1742462587649,1.63678,2012.3,2012.2,0.99381]
[1742462588048,1.63678,2012.3,2012.1,0.99382]
[1742462588249,1.63678,2012.3,2012.0,3.2078]
[1742462588447,1.6368,2012.3,2012.2,0.99381]
[1742462588658,4.8446,2012.3,2011.9,3.90341]
[1742462588945,3.2078,2012.0,2011.9,0.99396]
[1742462589146,4.20171,2012.0,2011.9,0.99396]
[1742462589853,3.2078,2012.0,2011.9,0.99396]
[1742462590555,4.20171,2012.0,2011.9,0.99396]
[1742462591054,6.4108,2012.0,2011.9,0.99396]
[1742462591455,7.40471,2012.0,2011.9,0.99396]
[1742462595552,6.4108,2012.0,2011.9,0.99396]
[1742462596653,6.4108,2012.0,2011.9,2.37226]
[1742462596859,3.2078,2012.0,2011.9,2.37226]
[1742462603265,1.24867774,2012.5,2012.2,2.48448]
[1742462603462,3.2078,2012.7,2012.5,0.99365]
[1742462603672,0.99353,2012.8,2012.5,0.99365]
[1742462603859,0.697,2012.6,2012.5,2.37115]
[1742462615073,0.00744472,2012.8,2012.7,0.99357]
[1742462615272,0.69794472,2012.8,2012.7,0.99357]
[1742462618169,0.69794472,2012.8,2012.6,2.39717]
[1742462618366,0.99357,2012.7,2012.6,2.39717]
[1742462618771,0.99365,2012.6,2012.5,0.99364]
[1742462618971,0.99362,2012.6,2012.5,0.99364]
[1742462619374,0.9936,2012.7,2012.6,0.99358]
[1742462619783,2.4121,2012.7,2012.6,0.99358]
[1742462620079,0.99362,2012.6,2012.5,2.27853]
[1742462620280,2.41212,2012.6,2012.5,2.27853]
[1742462621382,1.4185,2012.6,2012.5,2.27853]
[1742462622176,2.41212,2012.6,2012.5,2.27853]
[1742462622582,2.41212,2012.6,2012.5,0.99363]
[1742462623584,1.4185,2012.6,2012.5,0.99363]
[1742462623782,1.4185,2012.6,2012.5,2.33813]
[1742462626285,2.41212,2012.6,2012.5,2.33813]
[1742462626581,1.4185,2012.6,2012.5,2.33813]
[1742462630390,2.0869,2012.6,2012.5,2.33813]
[1742462636593,0.69794472,2012.8,2012.7,0.99357]
[1742462636794,2.06544472,2012.8,2012.7,0.99357]
[1742462639895,2.74944472,2012.8,2012.7,0.99357]
[1742462640296,3.74296472,2012.8,2012.7,0.99357]
[1742462641001,2.74944472,2012.8,2012.7,0.99357]
[1742462641999,3.74296472,2012.8,2012.7,0.99357]
[1742462642698,6.94496472,2012.8,2012.7,0.99357]
[1742462643802,0.99362,2012.7,2012.6,0.99357]
[1742462644095,2.32032,2012.7,2012.6,0.99357]
[1742462645399,0.99366,2012.6,2012.5,0.99364]
[1742462645605,0.99366,2012.5,2012.4,1.3135]
[1742462645789,2.48429,2012.4,2011.7,9.1678]
[1742462645995,3.2078,2012.2,2011.8,1.3135]
[1742462646198,1.69017,2012.1,2012.0,0.99391]
[1742462646400,2.7475,2012.1,2012.0,0.99391]
[1742462648004,3.74136,2012.1,2012.0,0.99391]
[1742462648202,2.7475,2012.1,2012.0,0.99391]
[1742462649500,3.74136,2012.1,2011.9,2.30746]
[1742462649698,1.3526,2012.0,2011.9,2.30746]
[1742462650006,1.3526,2012.0,2011.8,1.00142472]
[1742462650204,1.3526,2012.0,2011.8,0.00744472]
[1742462650400,1.3953,2012.1,2012.0,0.99391]
[1742462650708,2.7438,2012.1,2011.9,1.70043]
[1742462651511,3.73767,2012.1,2011.9,1.70043]
[1742462651804,3.73767,2012.1,2011.9,0.7065]
[1742462651805,2.7438,2012.1,2011.9,0.7065]
[1742462652005,0.99396,2011.9,2011.8,3.20944472]
[1742462652301,0.99396,2011.9,2011.8,1.59710267]
[1742462652501,0.99396,2011.9,2011.8,0.00744472]
[1742462654007,2.34244,2012.0,2011.9,0.99396]
[1742462654199,1.3485,2012.0,2011.9,0.99396]
[1742462655612,0.99387,2012.1,2011.9,0.99396]
[1742462656004,1.3472,2012.0,2011.8,0.69014472]
[1742462656217,0.99396,2011.9,2011.8,0.00744472]
[1742462656707,2.38096,2011.9,2011.8,0.00744472]
[1742462657312,2.38096,2011.9,2011.8,0.54749263]
[1742462657511,1.387,2011.9,2011.8,1.54150263]
[1742462657712,2.38096,2011.9,2011.8,1.54150263]
[1742462658012,2.38096,2011.9,2011.8,0.54749263]
[1742462659210,2.38096,2011.9,2011.8,0.00744472]
[1742462660809,2.38096,2011.9,2011.8,1.00145472]
[1742462661110,2.38096,2011.9,2011.8,0.00744472]
[1742462661313,0.99406,2011.7,2011.6,0.99407]
[1742462661514,1.3668,2011.8,2011.6,0.53980372]
[1742462661706,1.3668,2011.8,2011.6,0.99407]
[1742462661905,0.99406,2011.7,2011.6,0.99407]
[1742462662106,0.99406,2011.7,2011.6,1.53387146]
[1742462663114,2.36085,2011.8,2011.7,0.99406]
[1742462663511,1.3668,2011.8,2011.7,0.99406]
[1742462663712,0.99409,2011.7,2011.6,0.99408]
[1742462663917,0.99409,2011.7,2011.6,1.53380543]
[1742462664425,1.65219,2011.7,2011.6,1.53380543]
[1742462664722,1.65219,2011.7,2011.6,1.53383543]
[1742462665125,0.6581,2011.7,2011.6,1.53383543]
[1742462666724,1.9461,2011.7,2011.6,1.53383543]
[1742462668826,2.94016,2011.7,2011.6,0.53972543]
[1742462669725,0.99416,2011.5,2011.4,3.21524472]
[1742462669922,0.99416,2011.5,2011.4,5.05018748]
[1742462670122,0.99416,2011.5,2011.4,6.04439748]
[1742462670325,2.39876,2011.5,2011.4,6.04439748]
[1742462670620,1.4046,2011.5,2011.4,6.04439748]
[1742462670822,2.39876,2011.5,2011.4,6.04439748]
[1742462671221,2.39876,2011.5,2011.4,5.05018748]
[1742462671932,2.39876,2011.5,2011.4,4.51004472]
[1742462672121,2.39876,2011.5,2011.4,5.50425472]
[1742462673034,2.39876,2011.5,2011.4,4.51004472]
[1742462673425,2.39876,2011.5,2011.4,5.50425472]
[1742462674134,1.4046,2011.5,2011.4,5.50425472]
[1742462675445,0.6969,2011.6,2011.5,0.99416]
[1742462675622,2.1126,2011.6,2011.5,2.35616]
[1742462680734,3.10671,2011.6,2011.5,2.35616]
[1742462681231,3.10671,2011.6,2011.5,1.362]
[1742462681433,0.99416,2011.5,2011.4,3.21524472]
[1742462681633,2.31336,2011.5,2011.4,4.20945472]
[1742462682738,1.3192,2011.5,2011.4,4.20945472]
[1742462683135,1.3192,2011.5,2011.4,4.75009381]
[1742462683340,1.3192,2011.5,2011.4,5.42943148]
[1742462683837,1.3192,2011.5,2011.4,4.75009381]
[1742462684234,1.3192,2011.5,2011.4,5.42949848]
[1742462684826,1.3192,2011.5,2011.4,5.43081116]
[1742462685029,1.3192,2011.5,2011.4,4.75140649]
[1742462687039,1.3192,2011.5,2011.4,4.75154409]
[1742462687244,1.3192,2011.5,2011.4,5.4311991]
[1742462687441,1.3192,2011.5,2011.4,4.75154409]
[1742462688042,1.3192,2011.5,2011.4,5.43118704]
[1742462688933,1.3192,2011.5,2011.4,6.76438294]
[1742462690745,0.6969,2011.6,2011.5,0.99416]
[1742462690937,2.0969,2011.6,2011.5,2.90033894]
[1742462691745,2.0969,2011.6,2011.5,3.58020856]
[1742462692240,1.4,2011.6,2011.5,3.58020856]
[1742462692448,0.66554472,2011.7,2011.6,0.99411]
[1742462692647,0.00744472,2011.7,2011.6,3.59318894]
[1742462693046,1.33414472,2011.7,2011.6,3.59318894]
[1742462693742,1.33414472,2011.7,2011.6,2.90028894]
[1742462693946,2.00094472,2011.7,2011.6,2.90028894]
[1742462696644,2.67204472,2011.7,2011.6,2.90028894]
[1742462697156,2.67204472,2011.7,2011.6,2.90048927]
[1742462698649,3.66610472,2011.7,2011.6,2.90048927]
[1742462699146,2.67204472,2011.7,2011.6,2.90048927]
[1742462700945,2.67204472,2011.7,2011.6,3.58071511]
[1742462700946,0.00744472,2011.7,2011.6,3.58071511]
[1742462701148,0.00744472,2011.7,2011.6,3.58078241]
[1742462701650,0.00744472,2011.7,2011.6,6.78378241]
[1742462704355,0.00744472,2011.7,2011.6,2.21688241]
[1742462704659,1.36694472,2011.7,2011.6,2.21688241]
[1742462706558,1.36694472,2011.7,2011.6,1.22277241]
[1742462706860,2.36100472,2011.7,2011.6,0.54258083]
[1742462707063,5.56300472,2011.7,2011.6,0.54258083]
[1742462707262,5.56300472,2011.7,2011.6,1.53634406]
[1742462707449,4.56894472,2011.7,2011.6,1.53634406]
[1742462707655,5.56300472,2011.7,2011.6,1.53634406]
[1742462707863,6.96000472,2011.7,2011.6,1.53634406]
[1742462708159,6.96000472,2011.7,2011.6,0.54223406]
[1742462708855,5.96594472,2011.7,2011.4,3.21524472]
[1742462709062,0.99416,2011.5,2011.4,4.20941472]
[1742462709562,4.19616,2011.5,2011.4,1.00161472]
[1742462709949,4.19616,2011.5,2011.4,0.00744472]
[1742462709950,5.49746,2011.5,2011.4,0.00744472]
[1742462710761,0.99423,2011.4,2011.3,0.99423]
[1742462710962,2.98473,2011.4,2011.3,0.99423]
[1742462711150,2.98473,2011.4,2011.1,4.6038]
[1742462711151,1.9905,2011.4,2011.2,0.99428]
[1742462711356,1.2828,2011.3,2011.2,0.99428]
[1742462711556,2.27706,2011.3,2011.2,0.99428]
[1742462713068,0.99431,2011.2,2011.1,5.59811]
[1742462713369,1.2828,2011.2,2011.1,5.59811]
[1742462713665,2.27711,2011.2,2011.1,5.59811]
[1742462713962,2.91991,2011.2,2011.1,4.6038]
[1742462714153,0.99436,2011.1,2011.0,2.30577]
[1742462714359,2.96986,2011.1,2010.8,3.2078]
[1742462714558,0.99441,2011.0,2010.9,1.356]
[1742462714761,1.3092,2011.0,2010.9,2.35041]
[1742462715265,2.30361,2011.0,2010.9,2.35041]
[1742462715565,1.3092,2011.0,2010.9,2.35041]
[1742462716662,2.30361,2011.0,2010.9,2.35041]
[1742462716865,2.30361,2011.0,2010.9,2.35046]
[1742462717059,1.3092,2011.0,2010.9,2.35046]
[1742462717566,1.3092,2011.0,2010.9,0.99446]
[1742462717958,1.3092,2011.0,2010.9,2.31886]
[1742462718362,2.30361,2011.0,2010.9,2.31886]
[1742462718761,1.3092,2011.0,2010.6,0.6814]
[1742462718962,5.1796,2010.9,2010.8,0.9945]
[1742462719269,0.99452,2010.8,2010.7,0.99453]
[1742462719465,2.97892,2010.8,2010.7,0.99453]
[1742462720171,0.99455,2010.7,2010.6,2.31897]
[1742462720379,0.99455,2010.7,2010.3,3.203]
[1742462720380,4.6139,2010.7,2010.3,3.203]
[1742462720580,4.6139,2010.7,2010.5,0.99464]
[1742462720581,0.9946,2010.6,2010.5,0.99464]
[1742462720779,2.4007,2010.6,2010.5,0.99464]
[1742462721078,3.0921,2010.6,2010.5,0.99464]
[1742462721275,3.0921,2010.6,2010.2,5.69479]
[1742462721276,4.58409,2010.6,2010.2,0.99479]
[1742462721474,0.99473,2010.4,2010.1,1.398]
[1742462721774,0.99473,2010.4,2010.3,0.99475]
[1742462721981,4.19773,2010.4,2010.3,0.99475]
[1742462722171,3.203,2010.4,2010.3,0.99475]
[1742462722581,4.1977,2010.4,2010.3,0.99475]
[1742462722782,3.203,2010.4,2010.3,0.99475]
[1742462725777,0.6459,2010.5,2010.4,0.9947]
[1742462726269,1.64059,2010.5,2010.3,2.30481]
[1742462726684,4.84359,2010.5,2010.3,0.99471]
[1742462726870,4.84359,2010.5,2010.3,2.33483]
[1742462727074,4.84359,2010.5,2010.3,1.3401]
[1742462727274,4.84359,2010.5,2010.3,2.33482]
[1742462727578,0.9947,2010.4,2010.3,1.3401]
[1742462727984,0.9947,2010.4,2010.3,0.99475]
[1742462728180,0.99475,2010.3,2010.2,3.2078]
[1742462728483,0.99475,2010.3,2010.2,0.99476]
[1742462728683,0.99475,2010.4,2010.2,0.99476]
[1742462728874,3.8489,2010.5,2010.1,1.3401]
[1742462729074,0.99478,2010.3,2010.2,0.9948]
[1742462729382,4.19878,2010.3,2010.2,0.9948]
[1742462730678,3.204,2010.3,2010.2,0.9948]
[1742462731876,4.19875,2010.3,2010.2,0.9948]
[1742462732583,3.204,2010.3,2010.2,0.9948]
[1742462733481,3.204,2010.3,2010.2,2.3773]
[1742462733679,1.64058,2010.5,2010.2,2.3773]
[1742462733680,0.99472,2010.4,2010.2,1.9399]
[1742462733881,0.99472,2010.4,2010.3,1.3825]
[1742462735480,3.8499,2010.5,2010.3,1.3825]
[1742462735687,0.9947,2010.4,2010.3,2.37721]
[1742462736083,0.9947,2010.4,2010.3,1.3825]
[1742462736584,0.9947,2010.4,2010.3,2.37725]
[1742462736885,0.9947,2010.4,2010.3,1.3825]
[1742462737481,2.2458,2010.4,2010.3,1.3825]
[1742462737876,0.99475,2010.3,2010.2,0.99476]
[1742462738081,4.19875,2010.3,2010.2,0.99476]
[1742462739580,4.87725,2010.3,2010.2,0.99476]
[1742462739981,6.20415,2010.3,2010.2,0.99476]
[1742462740380,5.2094,2010.3,2010.1,1.4141]
[1742462740693,2.9774,2010.2,2010.1,2.40895]
[1742462740986,1.9826,2010.2,2010.1,2.40895]
[1742462741185,1.9826,2010.2,2010.1,2.94284603]
[1742462741374,2.9774,2010.2,2010.1,2.94284603]
[1742462742188,2.9774,2010.2,2010.1,2.94301405]
[1742462742685,1.9826,2010.2,2010.1,2.94301405]
[1742462743090,2.9774,2010.2,2010.1,2.94301405]
[1742462743388,1.9826,2010.2,2010.1,2.94301405]
[1742462745090,1.9826,2010.2,2010.1,2.94343989]
[1742462746185,1.9826,2010.2,2010.1,1.94858989]
[1742462746186,2.9774,2010.2,2010.1,1.94858989]
[1742462746491,4.46963,2010.2,2009.6,3.7657]
[1742462746689,0.99499,2009.9,2009.7,0.99502]
[1742462746887,5.204,2009.8,2009.7,2.31792]
[1742462747187,5.9091,2009.8,2009.7,2.31792]
[1742462747382,5.9091,2009.8,2009.7,1.3229]
[1742462747383,6.9041,2009.8,2009.7,1.3229]
[1742462747583,0.99511,2009.6,2009.5,0.99513]
[1742462747787,8.39661,2009.8,2009.6,0.9951]
[1742462747788,4.547,2009.7,2009.6,0.9951]
[1742462748190,4.547,2009.7,2009.5,1.3103]
[1742462748385,1.343,2009.6,2009.5,2.30545]
[1742462749593,4.5943,2009.8,2009.7,0.99505]
[1742462749789,7.7983,2009.8,2009.7,0.99505]
[1742462750093,8.7933,2009.8,2009.7,0.99505]
[1742462750288,10.1363,2009.8,2009.7,0.99505]
[1742462750494,9.1413,2009.8,2009.7,0.99505]
[1742462750691,10.1363,2009.8,2009.7,0.99505]
[1742462750895,9.1413,2009.8,2009.7,0.99505]
[1742462751396,10.1363,2009.8,2009.6,1.3103]
[1742462751690,1.3853,2009.7,2009.6,2.3054]
[1742462751987,1.3853,2009.7,2009.6,1.3103]
[1742462752193,1.3853,2009.7,2009.6,2.3054]
[1742462754995,2.6369,2009.7,2009.6,2.3054]
[1742462756991,3.63195,2009.7,2009.6,2.3054]
[1742462757389,2.6369,2009.7,2009.6,2.3054]
[1742462757592,3.63195,2009.7,2009.6,2.3054]
[1742462757985,2.38035,2009.7,2009.6,2.3054]
[1742462758389,2.38035,2009.7,2009.6,1.3103]
[1742462758795,2.38035,2009.7,2009.6,2.3054]
[1742462759187,1.3853,2009.7,2009.6,2.3054]
[1742462759999,2.637,2009.7,2009.6,2.3054]
[1742462760293,0.99513,2009.6,2009.5,0.99512]
[1742462760501,0.99513,2009.6,2009.5,2.41422]
[1742462760502,2.29833,2009.6,2009.5,2.41422]
[1742462760693,1.3032,2009.6,2009.5,2.41422]
[1742462760891,2.2983,2009.6,2009.5,2.41422]
[1742462761193,4.5082,2009.6,2009.5,2.41422]
[1742462764297,1.3032,2009.6,2009.5,2.41422]
[1742462764502,1.3032,2009.6,2009.5,3.09492]
[1742462766397,1.3032,2009.6,2009.5,2.41422]
[1742462766898,5.5033,2009.6,2009.5,2.41422]
[1742462767300,4.5082,2009.6,2009.5,2.41422]
[1742462772300,1.2517,2009.7,2009.6,0.9951]
[1742462772498,1.2517,2009.7,2009.6,3.0553]
[1742462772703,0.70976539,2009.7,2009.6,8.7631]
[1742462772905,3.2078,2010.1,2010.0,0.9949]
[1742462773199,4.5977,2010.1,2010.0,0.9949]
[1742462773597,5.59255,2010.1,2010.0,0.9949]
[1742462773798,5.59255,2010.1,2009.9,1.3768]
[1742462773799,4.5977,2010.1,2009.9,1.3768]
[1742462774098,1.3899,2010.0,2009.9,2.37171]
[1742462774298,2.3848,2010.0,2009.9,2.37171]
[1742462774499,1.3899,2010.0,2009.9,2.37171]
[1742462775697,1.3899,2010.0,2009.9,2.37175]
[1742462776805,4.5818,2010.1,2010.0,0.9949]
[1742462777000,4.5818,2010.1,2010.0,2.2909]
[1742462777503,5.57665,2010.1,2010.0,2.2909]
[1742462777702,4.5818,2010.1,2010.0,2.2909]
[1742462784002,1.374,2010.1,2010.0,2.2909]
[1742462785011,0.6438,2010.2,2010.1,0.99485]
[1742462785303,1.4109,2010.2,2010.1,5.56135]
[1742462786811,1.3121,2010.5,2010.4,0.9947]
[1742462787700,3.21524472,2010.6,2010.5,0.99465]
[1742462788312,1.31704472,2010.6,2010.5,4.20245]
[1742462788812,1.31704472,2010.6,2010.5,5.48755]
[1742462789409,0.00744472,2010.6,2010.5,5.48755]
[1742462794317,0.00744472,2010.6,2010.5,5.89438131]
[1742462794516,0.00744472,2010.6,2010.5,5.48755]
[1742462797220,0.00744472,2010.6,2010.5,0.99465]
[1742462797718,2.07104472,2010.6,2010.5,0.99465]
[1742462798015,2.72344472,2010.6,2010.5,0.99465]
[1742462798221,1.37524472,2010.6,2010.5,0.99465]
[1742462798412,0.00744472,2010.6,2010.5,0.99465]
[1742462798612,0.00744472,2010.6,2010.5,5.56975]
[1742462801923,4.72e-06,2010.6,2010.5,8.06975]
[1742462802623,3.847,2011.3,2011.2,0.99431]
[1742462804322,5.1638,2011.3,2011.2,0.99431]
[1742462808223,5.1638,2011.3,2011.1,4.20215]
[1742462808425,0.99436,2011.1,2011.0,0.00746343]
[1742462808820,1.64376,2011.1,2011.0,0.00746343]
[1742462809828,1.64376,2011.1,2011.0,1.00187343]
[1742462811126,0.6494,2011.1,2011.0,1.00187343]
[1742462811326,3.8514,2011.1,2011.0,1.00187343]
[1742462811528,5.1899,2011.1,2011.0,1.00187343]
[1742462816339,1.9879,2011.1,2011.0,1.00187343]
[1742462826945,2.98226,2011.1,2011.0,1.00187343]
[1742462827152,2.98226,2011.1,2011.0,0.00746343]
[1742462827350,6.18426,2011.1,2011.0,0.00746343]
[1742462827649,6.18426,2011.1,2011.0,1.00187343]
[1742462827948,6.18426,2011.1,2011.0,0.00746343]
[1742462828151,6.18426,2011.1,2011.0,1.00187343]
[1742462828647,6.18426,2011.1,2011.0,0.00746343]
[1742462829047,6.18426,2011.1,2011.0,1.00187343]
[1742462829248,6.18426,2011.1,2011.0,0.00746343]
[1742462829449,6.18426,2011.1,2011.0,1.00187343]
[1742462830350,6.18426,2011.1,2011.0,0.00746343]
[1742462831049,6.18426,2011.1,2011.0,1.00187343]
[1742462832251,6.18426,2011.1,2011.0,0.00746343]
[1742462834154,6.18426,2011.1,2011.0,1.00187343]
[1742462834652,6.18426,2011.1,2011.0,0.00746343]
[1742462834857,6.18426,2011.1,2011.0,1.00187343]
[1742462836950,5.1899,2011.1,2011.0,1.00187343]
[1742462837352,6.18426,2011.1,2011.0,1.00187343]
[1742462840560,6.18426,2011.1,2011.0,0.00746343]
[1742462843356,0.99465,2010.5,2010.4,3.2078]
[1742462843555,4.19665,2010.5,2010.4,3.2078]
[1742462843956,0.9947,2010.4,2010.3,1.3796]
[1742462844260,2.306,2010.4,2010.3,1.3796]
[1742462844958,2.306,2010.4,2010.3,2.37435]
[1742462845359,1.3113,2010.4,2010.3,2.37435]
[1742462845753,6.4098,2010.5,2010.3,1.3796]
[1742462845960,7.7046,2010.5,2010.4,2.365]
[1742462848967,8.69925,2010.5,2010.4,2.365]
[1742462849163,7.7046,2010.5,2010.4,2.365]
[1742462850769,4.5026,2010.5,2010.4,2.365]
[1742462850973,6.4098,2010.5,2010.4,2.365]
[1742462852067,3.2078,2010.5,2010.4,2.365]
[1742462853774,4.5821,2010.5,2010.4,2.365]
[1742462853968,5.2787,2010.5,2010.4,2.365]
[1742462863278,6.27335,2010.5,2010.4,2.365]
[1742462863588,6.27335,2010.5,2010.4,1.3703]
[1742462863787,0.99479,2010.3,2010.2,0.99476]
[1742462863988,4.5757,2010.4,2010.3,0.99475]
[1742462867188,5.2849,2010.4,2010.3,0.99475]
[1742462868187,6.2796,2010.4,2010.3,0.99475]
[1742462869388,5.2849,2010.4,2010.3,0.99475]
[1742462870685,5.2849,2010.4,2010.1,3.2078]
[1742462870686,0.9948,2010.2,2010.1,3.2078]
[1742462870882,0.9948,2010.2,2010.1,4.5905]
[1742462871079,3.202,2010.2,2010.1,5.58535]
[1742462871284,5.2604,2010.2,2010.1,5.58535]
[1742462880585,5.2604,2010.2,2010.1,4.5905]
[1742462880787,9.463,2010.2,2010.1,1.3827]
[1742462880987,8.4682,2010.2,2010.1,2.37755]
[1742462881287,8.4682,2010.2,2009.8,3.2078]
[1742462881487,2.36785,2010.1,2010.0,0.9949]
[1742462882589,0.9949,2010.0,2009.9,2.37102]
[1742462882782,5.236,2010.0,2009.6,1.2689]
[1742462882985,4.2028,2009.8,2009.7,1.4236]
[1742462883182,6.4098,2009.8,2009.3,11.76605]
[1742462883388,2.0282,2009.7,2009.6,0.9951]
[1742462884795,2.0282,2009.7,2009.4,41.79518]
[1742462884796,0.99515,2009.5,2009.4,41.79518]
[1742462885198,3.02793,2009.6,2009.5,0.99515]
[1742462885496,0.7116,2009.6,2009.5,0.99515]
[1742462886597,0.7116,2009.6,2009.5,2.37605]
[1742462887097,0.9952,2009.4,2009.3,4.20304]
[1742462887291,0.99525,2009.3,2009.2,0.99527]
[1742462887491,1.3681,2009.3,2009.2,0.99527]
[1742462888694,2.36335,2009.3,2009.2,0.99527]
[1742462888894,1.3681,2009.3,2009.2,0.99527]
[1742462890191,2.36335,2009.3,2009.2,0.99527]
[1742462890587,1.3681,2009.3,2008.9,48.8744]
[1742462890792,3.202,2009.2,2009.1,0.99535]
[1742462891000,4.1973,2009.2,2009.1,0.99535]
[1742462891309,4.19733,2009.2,2008.9,48.8744]
[1742462891494,3.202,2009.2,2009.0,0.99536]
[1742462891796,0.99535,2009.1,2009.0,0.99536]
[1742462892005,6.4098,2009.2,2008.7,40.8]
[1742462892198,0.678,2009.0,2008.7,42.1168]
[1742462892399,0.6717,2008.9,2008.8,2.31225]
[1742462892993,0.6717,2008.9,2008.8,0.99549]
[1742462898003,0.6717,2008.9,2008.8,2.38719]
[1742462900012,1.9906,2008.9,2008.8,2.38719]
[1742462901501,1.9906,2008.9,2008.8,0.99549]
[1742462901708,2.98609,2008.9,2008.8,0.99549]
[1742462902496,5.1984,2008.9,2008.6,3.2078]
[1742462902695,5.50092,2008.8,2008.7,0.9955]
[1742462903299,0.99554,2008.7,2008.6,3.2078]
[1742462903603,3.07164,2008.7,2008.6,4.20338]
[1742462903910,3.07164,2008.7,2008.3,4.20352]
[1742462903911,0.99569,2008.4,2008.3,4.20352]
[1742462904106,3.203,2008.4,2008.3,4.20352]
[1742462904605,5.9792,2008.4,2008.3,4.20352]
[1742462905401,5.2765,2008.4,2008.3,4.20352]
[1742462905600,4.6069,2008.4,2008.3,4.20352]
[1742462905906,4.6069,2008.4,2008.3,4.76262]
[1742462906307,4.6069,2008.4,2008.3,4.20352]
[1742462906501,5.3096,2008.4,2008.3,4.20352]
[1742462909911,4.6069,2008.4,2008.3,4.20352]
[1742462910507,4.6069,2008.4,2008.3,4.85262]
[1742462911510,3.892,2008.9,2008.8,0.99549]
[1742462911708,4.5382,2008.9,2008.8,0.99549]
[1742462911913,7.7422,2008.9,2008.8,0.99549]
[1742462912710,8.73765,2008.9,2008.8,0.99549]
[1742462912907,0.99549,2008.8,2008.7,2.40021]
[1742462913113,2.30509,2008.8,2008.7,0.99554]
[1742462914017,1.3096,2008.8,2008.7,0.99554]
[1742462914717,2.30509,2008.8,2008.7,0.99554]
[1742462915516,1.3096,2008.8,2008.7,0.99554]
[1742462916417,2.30509,2008.8,2008.7,0.99554]
[1742462917614,1.3096,2008.8,2008.7,0.99554]
[1742462918418,2.30509,2008.8,2008.7,0.99554]
[1742462918823,0.99554,2008.7,2008.6,2.32195]
[1742462919019,5.55864,2008.7,2008.6,0.99555]
[1742462919222,0.99559,2008.6,2008.5,0.99564]
[1742462919523,3.01379,2008.6,2008.5,0.99564]
[1742462919819,3.69129,2008.6,2008.5,0.99564]
[1742462920117,3.69132,2008.6,2008.5,0.99564]
[1742462920321,2.6957,2008.6,2008.5,0.99564]
[1742462924720,5.2222,2008.6,2008.5,0.99564]
[1742462924917,1.3591,2008.6,2008.5,2.31624]
[1742462925118,4.5631,2008.6,2008.5,2.31624]
[1742462926524,5.55869,2008.6,2008.5,2.31624]
[1742462927224,4.5631,2008.6,2008.5,2.31624]
[1742462929020,5.55869,2008.6,2008.5,2.31624]
[1742462929619,4.5631,2008.6,2008.5,2.31624]
[1742462930322,1.3591,2008.6,2008.5,2.31624]
[1742462930514,4.5631,2008.6,2008.5,2.31624]
[1742462930926,1.3591,2008.6,2008.5,2.31624]
[1742462933725,2.35469,2008.6,2008.5,2.31624]
[1742462935926,1.3591,2008.6,2008.3,4.20353]
[1742462936128,6.85966,2008.5,2008.3,4.5428]
[1742462936431,4.5641,2008.5,2008.4,2.33069]
[1742462938930,3.8616,2008.5,2008.4,2.33069]
[1742462939532,3.203,2008.5,2008.4,2.33069]
[1742462939833,3.203,2008.5,2008.4,3.58499]
[1742462940334,0.6667,2008.7,2008.6,0.99559]
[1742462941533,1.66224,2008.7,2008.5,1.3192]
[1742462941734,0.6667,2008.7,2008.6,0.99559]
[1742462942032,3.8697,2008.7,2008.6,1.5393027]
[1742462942827,3.8697,2008.7,2008.6,1.53935513]
[1742462943225,4.86524,2008.7,2008.6,1.53935513]
[1742462943630,4.86524,2008.7,2008.6,0.54376513]
[1742462944836,4.86524,2008.7,2008.6,1.53935513]
[1742462945826,3.8697,2008.7,2008.6,1.53935513]
[1742462946436,4.86524,2008.7,2008.6,1.53935513]
[1742462946739,3.8697,2008.7,2008.6,1.53953916]
[1742462947338,4.86524,2008.7,2008.6,1.53953916]
[1742462947540,3.8697,2008.7,2008.6,1.53953916]
[1742462947938,4.86524,2008.7,2008.6,0.54394916]
[1742462948436,3.8697,2008.7,2008.4,1.3958]
[1742462948738,0.99564,2008.5,2008.4,0.99568]
[1742462948937,0.99564,2008.5,2008.4,0.54400224]
[1742462949836,7.40644,2008.5,2008.4,0.54400224]
[1742462950042,8.71114,2008.5,2008.4,0.54400224]
[1742462950237,0.99569,2008.4,2008.3,0.99572]
[1742462950428,2.0066,2008.4,2008.3,1.53973699]
[1742462951543,3.00229,2008.4,2008.3,1.53973699]
[1742462952044,3.00229,2008.4,2008.3,1.5395829]
[1742462952242,3.00229,2008.4,2008.3,0.5438629]